[Event "FIDE Candidates 2026"]
[White "Caruana,Fabiano"]
[Black "Esipenko,Andrey"]
[Site "Agios Georgios Pegeia"]
[Round "6.2"]
[Annotator "TA"]
[Result "1/2-1/2"]
[Date "2026.04.04"]
[WhiteElo "2795"]
[BlackElo "2698"]
[PlyCount "92"]
[TimeControl "60"]

{[%evp 18,92,19,-2,40,26,50,34,54,14,49,44,42,6,5,7,14,7,9,8,14,0,0,0,0,0,0,0,8,8,16,15,16,7,23,0,0,0,0,0,0,0,0,0,0,0,0,0,0,0,0,0,0,0,0,0,0,0,0,0,0,0,0,0,0,0,0,-8,-8,-8,0,0,0,-8,-8,-8,0]} 1. Nf3 {[%emt 0:0:4]} d5 {[%emt 0:0:29]} 2. c4 {[%emt 0:0:7]} e6 {[%emt 0:0:8]} 3. g3 {[%emt 0:0:4]} Nf6 {[%emt 0:0:7]} 4. Bg2 {[%emt 0:0:4]} Be7 {[%emt 0:0:5]} 5. O-O {[%emt 0:0:10]} O-O {[%emt 0:0:5]} 6. b3 {[%emt 0:0:4]} c5 {[%emt 0:0:35]} 7. Bb2 {[%emt 0:0:7]} Nc6 {[%emt 0:0:15]} 8. e3 {[%emt 0:0:6]} b6 {[%emt 0:3:6]} 9. Qe2 {[%emt 0:0:22]} Bb7 {[%emt 0:1:33]} 10. Rd1 {[%emt 0:0:31]} Qd7 {[%emt 0:6:22] A14: English Opening: 1...e6 with b3 by White.} 11. d4 {[%emt 0:23:51]} cxd4 {[%emt 0:4:1]} 12. Nxd4 {[%emt 0:0:5]} Nxd4 {[%emt 0:6:57] White is slightly better.} 13. Bxd4 {[%emt 0:0:4]} Qc8 $146 {[%emt 0:0:16]} ({Predecessor:} 13... Qc7 14. cxd5 Bxd5 15. e4 Bc6 16. Nc3 e5 17. Be3 Rad8 18. Rxd8 Rxd8 19. Rd1 Rxd1+ 20. Qxd1 {½-½ Asadli,V (2572)-Gadimbayli,A (2470) AZE-ch Prelim 75th 2021 (8)} )14. cxd5 {[%emt 0:36:34]} Bxd5 {[%emt 0:7:50]} 15. Nc3 {[%emt 0:0:9]} (15. e4 $5 Bc6 16. e5 $14 )Bxg2 {[%emt 0:1:7]} 16. Kxg2 {[%emt 0:0:3]} Qb7+ {[%emt 0:6:8]} 17. Qf3 {[%emt 0:0:18]} Qxf3+ {[%emt 0:0:18]} 18. Kxf3 {[%emt 0:0:38]} Rfc8 {[%emt 0:3:14]} 19. Rd3 {[%emt 0:9:26]} Nd7 {[%emt 0:6:11]} 20. Rdd1 {[%emt 0:3:20]} f6 {[%emt 0:20:45]} 21. Nb5 {[%emt 0:6:42]} a6 {[%emt 0:20:35]} 22. Bb2 {[%emt 0:1:2]} axb5 {[%emt 0:0:13]} 23. Rxd7 {[%emt 0:0:4]} Bf8 {[%emt 0:0:7]} 24. Bd4 {[%emt 0:3:53][%cal Bb2d4,Bd4b6,Bb6d8][%mdl 32]} b4 {[%emt 0:9:3]} 25. Bxb6 {[%emt 0:2:2]} Ra6 {[%emt 0:4:48]} 26. Bd8 {[%emt 0:4:8]} Rd6 {[%emt 0:3:0] The position is equal.} 27. Rxd6 {[%emt 0:3:42]} Bxd6 $11 {[%emt 0:0:1][%mdl 4096] Endgame KRB-KRB. White is a pawn up.} 28. Bb6 {[%emt 0:0:6]} Rc6 {[%emt 0:3:0]} 29. Ba7 {[%emt 0:0:13]} Rc2 {[%emt 0:1:58]} 30. Bd4 {[%emt 0:10:53]} e5 {[%emt 0:0:20]} 31. Ba7 {[%emt 0:0:3]} Kf7 {[%emt 0:0:18]} 32. e4 {[%emt 0:0:6]} Ke6 {[%emt 0:0:15]} 33. g4 {[%emt 0:2:39]} g6 {[%emt 0:0:15]} 34. Be3 {[%emt 0:0:28]} Be7 {[%emt 0:0:30]} 35. h3 {[%emt 0:5:29]} f5 {[%emt 0:0:49]} 36. gxf5+ {[%emt 0:0:3]} gxf5 {[%emt 0:0:4]} 37. Rc1 {[%emt 0:0:28]} Rxa2 {[%emt 0:0:53]} 38. Rc6+ {[%emt 0:0:35]} Kd7 {[%emt 0:0:7]} 39. Rc4 {[%emt 0:0:2]} fxe4+ {[%emt 0:1:46]} 40. Kxe4 {[%emt 0:0:0]} Rb2 {[%emt 0:0:0]} 41. Kxe5 {[%emt 0:11:23]} Rxb3 {[%emt 0:1:10]} 42. Kd5 {[%emt 0:0:8]} Ra3 {[%emt 0:3:56]} 43. Re4 {[%emt 0:6:2]} Ra5+ {[%emt 0:1:33]} 44. Kc4 {[%emt 0:0:5]} Rh5 {[%emt 0:0:21]} 45. Bd2 {[%emt 0:1:14]} Rxh3 {[%emt 0:0:24]} 46. Bxb4 {[%emt 0:0:5]} Bxb4 {[%emt 0:0:36] Weighted Error Value: White=0.04 (flawless) /Black=0.05 (flawless)   Inaccurate:     	White=2     	Black=1      OK:         	White=12    	Black=10     Best:        	White=1     	Black=2} 1/2-1/2

[Event "FIDE Candidates 2026"]
[White "Giri,Anish"]
[Black "Bluebaum,Matthias"]
[Site "Agios Georgios Pegeia"]
[Round "6.3"]
[Annotator "TA"]
[Result "1/2-1/2"]
[Date "2026.04.04"]
[WhiteElo "2753"]
[BlackElo "2698"]
[PlyCount "168"]
[TimeControl "60"]

{[%evp 18,168,25,25,25,23,25,30,32,11,20,12,14,9,28,2,14,15,29,17,18,26,32,18,18,18,28,18,29,18,18,19,28,28,29,29,29,29,29,29,32,34,35,32,40,21,26,18,19,19,40,32,34,19,31,19,27,19,27,21,33,25,20,16,23,0,40,22,37,41,39,35,39,39,43,35,44,39,43,33,43,14,43,43,43,43,43,43,43,43,58,43,57,43,43,43,43,43,43,43,43,43,43,43,43,43,43,43,43,43,44,43,43,43,51,43,52,43,51,51,67,40,62,26,40,25,27,25,25,25,47,0,47,0,47,47,48,47,47,47,53,43,40,0,48,22,52,0,18,11,24,0,0]} 1. c4 {[%emt 0:0:4]} e6 {[%emt 0:0:11]} 2. Nc3 {[%emt 0:0:6]} d5 {[%emt 0:0:4]} 3. d4 {[%emt 0:0:5]} Nf6 {[%emt 0:0:5]} 4. cxd5 {[%emt 0:0:16]} exd5 {[%emt 0:0:6]} 5. Bg5 {[%emt 0:0:5]} c6 {[%emt 0:0:10]} 6. e3 {[%emt 0:0:5]} Bf5 {[%emt 0:0:7]} 7. Qf3 {[%emt 0:0:4]} Bg6 {[%emt 0:0:7]} 8. Bxf6 {[%emt 0:0:5]} Qxf6 {[%emt 0:0:4]} 9. Qxf6 {[%emt 0:0:4]} gxf6 {[%emt 0:0:4]} 10. h4 $1 {[%emt 0:0:8][%mdl 4] is recently more successful than 10.Nf3.} h5 {[%emt 0:0:25] D35: Queen's Gambit Declined: Exchange Variation.} 11. Nge2 {[%emt 0:0:19]} Bd6 {[%emt 0:1:32]} 12. g3 {[%emt 0:0:14]} Nd7 {[%emt 0:1:30] White has an edge.} 13. Bg2 {[%emt 0:0:5]} Kf8 $146 {[%emt 0:4:37]} ({Predecessor:} 13... a5 14. Bf3 Nb6 15. O-O-O a4 16. Nf4 Nc4 17. Nce2 Be7 18. Nxg6 fxg6 19. Nf4 Kf7 {1-0 Smietanska,W (2070)-Kampmann,H (2160) Titled Tuesday intern op 08th Oct Early blitz 2024 (11)} )14. O-O {[%emt 0:1:34]} Kg7 {[%emt 0:5:54]} 15. a3 {[%emt 0:5:34]} a5 {[%emt 0:4:22]} 16. b3 {[%emt 0:0:43]} Rhe8 {[%emt 0:5:56]} 17. Rfc1 {[%emt 0:4:18]} Ra7 {[%emt 0:7:18]} 18. Na4 {[%emt 0:8:2]} Bf5 {[%emt 0:8:44]} 19. Bf3 {[%emt 0:3:57]} Kh6 {[%emt 0:2:27]} 20. Nb2 {[%emt 0:5:28]} Ra6 {[%emt 0:3:35]} 21. Nc3 {[%emt 0:1:2]} Ra7 {[%emt 0:4:4]} 22. Kg2 {[%emt 0:1:27]} Bg6 {[%emt 0:3:20]} 23. Be2 {[%emt 0:3:40]} Rea8 {[%emt 0:1:58]} 24. Nd3 {[%emt 0:14:40]} Bf5 {[%emt 0:3:43]} 25. Na4 {[%emt 0:1:6]} Be4+ {[%emt 0:4:42] A strong pair of Bishops.} 26. Kf1 {[%emt 0:0:31]} Bf5 {[%emt 0:6:1]} 27. Nac5 {[%emt 0:6:46]} Nb6 {[%emt 0:12:26]} 28. Nb2 {[%emt 0:4:29]} Be7 {[%emt 0:3:12]} 29. Nba4 {[%emt 0:8:30]} Nc8 {[%emt 0:4:34]} 30. Nd3 {[%emt 0:0:29]} Nd6 {[%emt 0:5:3]} 31. Nc3 {[%emt 0:2:36]} Bg6 {[%emt 0:1:7]} 32. Nf4 {[%emt 0:1:19]} Ne8 {[%emt 0:2:17]} 33. Na4 {[%emt 0:4:17]} Nd6 {[%emt 0:2:9]} 34. Nc5 {[%emt 0:3:32]} Ne8 {[%emt 0:1:50]} 35. Ra2 {[%emt 0:1:18]} Bd6 {[%emt 0:0:30]} 36. Nfd3 {[%emt 0:4:23]} Be7 {[%emt 0:2:7]} 37. Na4 {[%emt 0:2:2]} Nd6 {[%emt 0:1:37]} 38. Nf4 {[%emt 0:2:15]} Ne8 {[%emt 0:2:14]} 39. Nb6 {[%emt 0:10:54]} Rd8 {[%emt 0:0:16]} 40. Nd3 {[%emt 0:0:0]} Nd6 {[%emt 0:0:0]} 41. Nf4 {[%emt 0:8:37]} Re8 {[%emt 0:4:19]} 42. Kg1 {[%emt 0:0:55][%cal Bf1g1,Bg1h2,Bh2g2][%mdl 32]} Bd8 {[%emt 0:2:8]} 43. Na4 {[%emt 0:0:8]} Be7 {[%emt 0:0:14]} 44. Bf1 {[%emt 0:0:40]} Bf5 {[%emt 0:1:14]} 45. Nc5 {[%emt 0:2:29]} Rea8 {[%emt 0:1:38]} 46. Kh2 {[%emt 0:0:56]} Ne8 {[%emt 0:1:26]} 47. Na4 {[%emt 0:1:13]} Nd6 {[%emt 0:0:32]} 48. Nc3 {[%emt 0:0:25]} Ne8 {[%emt 0:2:32][%cal Bd6e8,Be8f6,Bf6e4][%mdl 32]} 49. Bd3 {[%emt 0:2:52]} Bxd3 {[%emt 0:1:42]} 50. Nxd3 {[%emt 0:0:5]} f5 {[%emt 0:0:2]} 51. Kg2 {[%emt 0:3:43]} Nf6 {[%emt 0:0:58]} 52. Na4 {[%emt 0:0:18]} Bd6 {[%emt 0:1:18]} 53. Nac5 {[%emt 0:5:42]} Kg7 {[%emt 0:0:35]} 54. Rcc2 {[%emt 0:0:13]} Ne4 {[%emt 0:0:42]} 55. Na4 {[%emt 0:1:37][%cal Bc5a4,Ba4c3,Bc3e2,Be2f4][%mdl 32]} Nf6 {[%emt 0:0:55]} 56. Nc3 {[%emt 0:0:4]} Ne4 {[%emt 0:0:8]} 57. Ne2 {[%emt 0:0:7]} Nf6 {[%emt 0:0:33]} 58. Nb2 {[%emt 0:0:48]} Ne4 {[%emt 0:0:34]} 59. Na4 {[%emt 0:0:10]} Nf6 {[%emt 0:0:33]} 60. Nac3 {[%emt 0:0:6]} Ne4 {[%emt 0:0:34]} 61. Kf3 {[%emt 0:0:40]} Nf6 {[%emt 0:0:55]} 62. Nf4 {[%emt 0:3:54]} Kh6 {[%emt 0:0:25]} 63. Nd3 {[%emt 0:0:5]} Ne4 {[%emt 0:0:31]} 64. Ne2 {[%emt 0:0:8]} Kg7 {[%emt 0:0:51]} 65. Rc1 {[%emt 0:0:33]} Nf6 {[%emt 0:0:38]} 66. Kg2 {[%emt 0:1:20]} (66. Nc5 {seems wilder.} Ne4 67. Nf4 Rh8 68. Rcc2 )Ne4 {[%emt 0:0:29]} 67. Ne1 {[%emt 0:1:18]} Nf6 {[%emt 0:0:34]} 68. Rd1 {[%emt 0:1:13]} Ne4 {[%emt 0:0:16]} 69. Rd3 {[%emt 0:0:6]} Nf6 {[%emt 0:0:51]} 70. Nc2 {[%emt 0:0:8]} Ne4 {[%emt 0:0:28]} 71. Rb2 {[%emt 0:0:7]} Ra6 {[%emt 0:1:45]} 72. Kf1 {[%emt 0:2:27]} Nf6 {[%emt 0:2:48]} 73. Ra2 {[%emt 0:2:13]} Ne4 {[%emt 0:0:16]} 74. Kg2 {[%emt 0:0:8]} R6a7 {[%emt 0:0:5]} 75. Ne1 {[%emt 0:0:12]} Nf6 $1 {[%emt 0:0:6]} 76. Nf3 {[%emt 0:0:4]} Ne4 {[%emt 0:0:15]} 77. Nd2 {[%emt 0:0:4]} Nf6 {[%emt 0:0:3]} 78. Nb1 {[%emt 0:0:3]} Ne4 {[%emt 0:0:24]} 79. Rb2 {[%emt 0:0:7]} Ra6 {[%emt 0:0:46]} 80. Rd1 {[%emt 0:0:15]} Rb6 {[%emt 0:0:44]} (80... Kh6 $11 {deserves consideration.} )81. Rc1 {[%emt 0:0:25]} Rba6 {[%emt 0:0:23]} 82. Nec3 {[%emt 0:0:9]} (82. a4 $14 )Rb6 {[%emt 0:1:21]} 83. Na4 {[%emt 0:1:9]} Rba6 {[%emt 0:2:27]} 84. Nac3 {[%emt 0:0:3]} Rb6 {[%emt 0:0:5] Weighted Error Value: White=0.07 (flawless) /Black=0.05 (flawless)   Mistake:       	White=1     	Black=1      Inaccurate:     	White=6     	Black=3      OK:         	White=6     	Black=16     Best:        	---       	Black=1      Strong:       	---       	Black=1} 1/2-1/2

[Event "FIDE Candidates 2026"]
[White "Nakamura,Hikaru"]
[Black "Praggnanandhaa R"]
[Site "Agios Georgios Pegeia"]
[Round "6.4"]
[Annotator "TA"]
[Result "1/2-1/2"]
[Date "2026.04.04"]
[WhiteElo "2810"]
[BlackElo "2741"]
[PlyCount "46"]
[TimeControl "60"]

{[%evp 14,46,8,2,4,0,0,0,0,0,0,0,0,0,0,-12,0,-12,0,-28,-25,-24,-24,-22,-20,-8,-13,-22,0,0,0,-26,0,0,0]} 1. d4 {[%emt 0:0:4]} Nf6 {[%emt 0:0:39]} 2. c4 {[%emt 0:0:11]} e6 {[%emt 0:0:14]} 3. Nc3 {[%emt 0:0:24]} Bb4 {[%emt 0:0:8]} 4. e3 {[%emt 0:0:4]} b6 {[%emt 0:0:23]} 5. Nge2 {[%emt 0:0:18]} c5 {[%emt 0:0:57]} 6. a3 {[%emt 0:1:46]} Ba5 {[%emt 0:0:6]} 7. Bd2 {[%emt 0:5:51]} O-O {[%emt 0:1:12]} 8. d5 {[%emt 0:3:26]} exd5 {[%emt 0:0:44] E42: Nimzo-Indian: Rubinstein: 4...c5 5 Ne2.} 9. Nxd5 {[%emt 0:6:1]} Nxd5 {[%emt 0:3:57]} 10. cxd5 {[%emt 0:0:42]} Bxd2+ {[%emt 0:0:36]} 11. Qxd2 {[%emt 0:0:4]} Ba6 {[%emt 0:3:40]} 12. Ng3 {[%emt 0:9:8]} Bxf1 {[%emt 0:1:7]} 13. Kxf1 $146 {[%emt 0:0:2]} ({Predecessor:} 13. Nxf1 d6 14. Ng3 Nd7 15. O-O f5 16. Rae1 b5 17. f4 c4 18. e4 fxe4 19. Nxe4 {0-1 Kasparov,S (2462)-Rotstein,A (2557) San Martino di Castrozza op 3rd 2002 (6)} )d6 {[%emt 0:9:48]} 14. h4 {[%emt 0:7:57][%cal Bh2h4,Bh4h5][%mdl 32]} Nd7 {[%emt 0:3:30][%cal Bb8d7,Bd7e5,Be5g4][%mdl 32]} 15. e4 {[%emt 0:0:21]} Qf6 {[%emt 0:7:20]} 16. Re1 {[%emt 0:13:55]} g6 {[%emt 0:12:23]} 17. h5 {[%emt 0:1:4]} Ne5 {[%emt 0:0:48]} 18. Rh3 {[%emt 0:6:46]} b5 {[%emt 0:5:48]} 19. Kg1 {[%emt 0:7:21]} c4 {[%emt 0:10:23]} 20. Qh6 {[%emt 0:3:36]} Ng4 {[%emt 0:3:41]} 21. Qd2 {[%emt 0:0:20]} Ne5 {[%emt 0:2:24]} 22. Qh6 {[%emt 0:0:10]} Ng4 {[%emt 0:3:11][%csl LRb2,LRf2,LRh6]} 23. Qd2 {[%emt 0:0:2]} Ne5 {[%emt 0:19:52] Not much happened in this game.   Weighted Error Value: White=0.03 (flawless) /Black=0.04 (flawless)   Inaccurate:     	White=1     	Black=1      OK:         	White=7     	Black=9} 1/2-1/2

[Event "FIDE Candidates 2026"]
[White "Sindarov,Javokhir"]
[Black "Giri,Anish"]
[Site "Agios Georgios Pegeia"]
[Round "7.1"]
[Annotator "TA"]
[Result "1/2-1/2"]
[Date "2026.04.05"]
[WhiteElo "2745"]
[BlackElo "2753"]
[PlyCount "170"]
[TimeControl "60"]

{[%evp 18,170,19,10,22,12,29,15,9,0,0,4,15,0,0,0,0,0,25,36,24,34,38,14,4,9,22,8,23,21,21,14,11,10,11,6,10,6,6,5,9,2,24,22,27,15,29,19,46,46,47,48,58,49,59,59,65,61,58,57,85,68,101,94,100,114,147,147,147,147,147,0,153,153,153,153,153,147,153,153,153,153,153,153,153,153,153,153,153,153,153,153,153,153,153,153,153,153,153,153,153,153,153,153,153,153,153,0,153,153,153,153,153,153,153,396,396,153,153,153,153,153,153,30,153,149,153,153,153,46,153,153,153,0,156,0,156,28,28,28,28,28,28,28,28,28,28,28,28,28,28,28,28,0,0]} 1. d4 {[%emt 0:0:3]} Nf6 {[%emt 0:0:4]} 2. c4 {[%emt 0:0:5]} e6 {[%emt 0:0:3]} 3. Nf3 {[%emt 0:0:4]} d5 {[%emt 0:0:4]} 4. Nc3 {[%emt 0:0:5]} Bb4 {[%emt 0:0:10]} 5. Bg5 {[%emt 0:0:10]} h6 {[%emt 0:0:7]} 6. Bxf6 {[%emt 0:0:6]} Qxf6 {[%emt 0:0:4]} 7. e3 {[%emt 0:0:10]} O-O {[%emt 0:0:16]} 8. Rc1 {[%emt 0:0:11]} dxc4 {[%emt 0:0:28]} 9. Bxc4 {[%emt 0:0:9]} c5 {[%emt 0:0:3]} 10. O-O {[%emt 0:0:14]} cxd4 {[%emt 0:0:7] D38: Queen's Gambit Declined: Ragozin Defence (4 Nf3 Bb4).} 11. Ne4 {[%emt 0:0:8]} Qe7 {[%emt 0:0:16]} 12. exd4 {[%emt 0:0:25]} Rd8 {[%emt 0:2:37]} 13. Qe2 {[%emt 0:0:6]} Nc6 {[%emt 0:20:22]} 14. Rfd1 {[%emt 0:0:40]} Ba5 {[%emt 0:4:15]} 15. Bb5 {[%emt 0:0:18]} Bd7 {[%emt 0:0:6]} 16. Nc5 {[%emt 0:0:8]} Be8 {[%emt 0:0:5]} 17. d5 {[%emt 0:0:9]} exd5 {[%emt 0:0:3]} 18. Qxe7 {[%emt 0:0:11]} Nxe7 {[%emt 0:0:2]} 19. Nxb7 {[%emt 0:0:29][%cal Bc5b7,Bb7a5,Ba5b3,Bb3d4][%mdl 32] [#]} Rdb8 {[%emt 0:21:56]} 20. Nxa5 {[%emt 0:1:33] Bxe8 is the strong threat.} Rxb5 {[%emt 0:0:46]} 21. Nb3 {[%emt 0:0:9]} a5 {[%emt 0:0:54][%cal Ba7a5,Ba5a4][%mdl 32]} 22. Rd2 {[%emt 0:8:17]} a4 {[%emt 0:3:29]} 23. Nbd4 {[%emt 0:0:23]} Rb7 {[%emt 0:0:10] Repels Rc7} 24. h3 $146 {[%emt 0:1:9]} ({Predecessor:} 24. Ne5 Rc8 25. Rxc8 Nxc8 26. b3 axb3 27. axb3 Nd6 28. Nd3 Nb5 29. Nb4 Nxd4 30. Rxd4 {½-½ Ruck,R (2531)-Dizdar,G (2541) AUT-chT 0607 2006 (7)} )Rab8 {[%emt 0:0:54]} 25. b3 {[%emt 0:0:9]} axb3 {[%emt 0:1:3]} 26. axb3 {[%emt 0:0:5]} f6 {[%emt 0:9:21]} 27. g4 {[%emt 0:12:7]} h5 {[%emt 0:2:41]} 28. Ne1 {[%emt 0:1:0]} hxg4 {[%emt 0:8:2]} 29. hxg4 {[%emt 0:0:35]} Ng6 {[%emt 0:13:39]} 30. f3 {[%emt 0:4:42]} Ne5 {[%emt 0:0:49]} 31. Kf2 {[%emt 0:0:23]} g5 {[%emt 0:1:24]} 32. Nd3 {[%emt 0:1:51]} Bd7 {[%emt 0:1:33]} 33. Kg3 {[%emt 0:6:23]} Nxd3 {[%emt 0:2:20]} 34. Rxd3 {[%emt 0:0:17]} Rb6 {[%emt 0:0:14]} 35. Rd2 {[%emt 0:2:58]} Kf7 {[%emt 0:7:13]} 36. Rc5 {[%emt 0:5:58]} R8b7 {[%emt 0:3:43]} 37. Rh2 {[%emt 0:1:9] White is more active.} Rd6 {[%emt 0:1:44]} 38. Kf2 {[%emt 0:5:18]} Kg7 {[%emt 0:1:25]} 39. Ra5 {[%emt 0:0:34]} Rb4 {[%emt 0:5:30]} 40. Ke3 {[%emt 0:0:0]} Rdb6 {[%emt 0:0:0]} 41. Rxd5 {[%emt 0:8:23]} Be6 {[%emt 0:11:30]} 42. Rd8 {[%emt 0:0:36]} Rxb3+ {[%emt 0:0:15]} 43. Nxb3 {[%emt 0:0:5]} Rxb3+ $16 {[%emt 0:0:2][%mdl 4096] Endgame KRR-KRB} 44. Kf2 {[%emt 0:4:35]} (44. Rd3 $16 )Rb2+ $2 {[%emt 0:1:15]} (44... Bxg4 $1 $11 45. fxg4 Rb2+ 46. Kg1 Rb1+ 47. Kg2 Rb2+ 48. Kg1 )45. Kg3 {[%emt 0:0:7]} Rxh2 {[%emt 0:0:35]} 46. Kxh2 {[%emt 0:0:23] KR-KB} Kf7 {[%emt 0:0:47]} 47. Kg3 {[%emt 0:4:27]} Ke7 {[%emt 0:0:12]} 48. Ra8 {[%emt 0:1:46]} Kf7 {[%emt 0:0:45]} 49. Ra7+ {[%emt 0:0:22]} Kf8 {[%emt 0:0:9]} 50. Kf2 {[%emt 0:1:26]} Ke8 {[%emt 0:0:22]} 51. Ke3 {[%emt 0:0:17]} Kf8 {[%emt 0:0:30]} 52. Kd4 {[%emt 0:1:20]} Ke8 {[%emt 0:0:22]} 53. Kc5 {[%emt 0:0:28]} Kf8 {[%emt 0:0:15]} 54. Rb7 {[%emt 0:0:23]} Ba2 {[%emt 0:1:12]} 55. Rc7 {[%emt 0:4:43]} Bb3 {[%emt 0:0:21]} 56. Kd6 {[%emt 0:0:4]} Ba2 {[%emt 0:0:41]} 57. Rc2 {[%emt 0:6:58]} Bb3 {[%emt 0:0:6]} 58. Rb2 {[%emt 0:0:4]} Bc4 {[%emt 0:0:4]} 59. Rb4 {[%emt 0:0:2]} Ba2 {[%emt 0:0:6]} 60. Rb5 {[%emt 0:2:25]} Kf7 {[%emt 0:2:14]} 61. Rb7+ {[%emt 0:15:42]} Kf8 {[%emt 0:0:6]} 62. Rb2 {[%emt 0:0:4]} Bc4 {[%emt 0:0:3]} 63. Rf2 {[%emt 0:0:3]} Bb3 {[%emt 0:1:11]} 64. Rf1 {[%emt 0:1:48]} Bc4 {[%emt 0:0:59]} 65. Ra1 {[%emt 0:0:28]} Bb3 {[%emt 0:0:7]} 66. Ra3 $2 {[%emt 0:0:59]} (66. Rb1 $16 Bc4 67. Rb8+ Kf7 68. Kc5 )Bc4 $18 {[%emt 0:0:9]} 67. Ra5 $2 {[%emt 0:0:38]} (67. Rc3 $18 Ba2 68. Rc8+ Kf7 69. Ra8 )Kf7 $16 {[%emt 0:1:15]} 68. Ra7+ {[%emt 0:2:43]} Kf8 {[%emt 0:0:5]} 69. Kd7 {[%emt 0:7:12]} Kf7 {[%emt 0:0:58]} 70. Rc7 {[%emt 0:1:36]} ({White should play} 70. Kd8+ $16 Kf8 71. Kd7 )Bb3 {[%emt 0:0:17]} (70... Be2 $11 {remains equal.} )71. Rc5 {[%emt 0:0:5]} Be6+ {[%emt 0:0:18]} 72. Kc6 {[%emt 0:1:9]} Bb3 {[%emt 0:0:9]} 73. Rf5 {[%emt 0:0:23]} (73. Kd6 $16 )Be6 {[%emt 0:1:6] [#]} (73... Bc4 $14 )74. Kd6 $1 {[%emt 0:0:10]} Bb3 {[%emt 0:0:22]} 75. Rb5 {[%emt 0:0:33]} Ba2 {[%emt 0:0:20]} 76. Rb4 {[%emt 0:0:5] Against Bc4} Kf8 $1 {[%emt 0:0:10]} 77. f4 {[%emt 0:0:6]} (77. Rb8+ $16 Kf7 78. Rb2 )gxf4 $11 {[%emt 0:0:3]} 78. Rxf4 {[%emt 0:0:3]} Kg7 {[%emt 0:1:23]} 79. Ke7 {[%emt 0:0:4]} Kg6 {[%emt 0:0:4]} 80. Rxf6+ {[%emt 0:0:27]} Kg5 {[%emt 0:0:3]} 81. Rf2 {[%emt 0:0:7]} Bb3 {[%emt 0:0:24]} 82. Rg2 {[%emt 0:0:8]} Bd1 {[%emt 0:0:13]} 83. Ke6 {[%emt 0:0:8]} Bxg4+ {[%emt 0:0:12]} 84. Ke5 {[%emt 0:0:3]} Kh5 {[%emt 0:0:5]} 85. Rxg4 {[%emt 0:0:6]} Kxg4 {[%emt 0:0:3] Black escapes into a draw.   Weighted Error Value: White=0.06 (flawless) /Black=0.09 (flawless)   Missed win:     	White=1     	---        Mistake:       	White=5     	Black=3      Inaccurate:     	White=1     	Black=3      OK:         	White=8     	Black=8      Best:        	White=1     	Black=1      Strong:       	---       	Black=1} 1/2-1/2

[Event "FIDE Candidates 2026"]
[White "Praggnanandhaa R"]
[Black "Caruana,Fabiano"]
[Site "Agios Georgios Pegeia"]
[Round "7.2"]
[Annotator "TA"]
[Result "1/2-1/2"]
[Date "2026.04.05"]
[WhiteElo "2741"]
[BlackElo "2795"]
[PlyCount "75"]
[TimeControl "60"]

{[%evp 10,74,28,4,12,-8,43,39,43,43,40,38,41,41,50,24,27,33,28,24,26,29,27,33,34,41,29,0,0,0,0,0,0,-10,-16,-7,0,0,0,-28,-23,-19,-19,-26,-28,-35,0,-14,5,-20,0,0,0,0,0,0,0,0,0,0,0,0,0,0,0,0,0]} 1. d4 {[%emt 0:0:37]} d5 {[%emt 0:0:6]} 2. c4 {[%emt 0:0:10]} c6 {[%emt 0:0:5]} 3. Nf3 {[%emt 0:0:49]} Nf6 {[%emt 0:0:6]} 4. Nc3 {[%emt 0:4:51]} dxc4 {[%emt 0:0:53]} 5. a4 {[%emt 0:0:7]} Bf5 {[%emt 0:0:5]} 6. Ne5 {[%emt 0:0:7]} Qc7 {[%emt 0:0:12] D17: Slav Defence: 5 a4 Bf5: Lines with 6 Nh4 and 6 Ne5.} 7. Nxc4 {[%emt 0:3:49]} Na6 {[%emt 0:0:26]} (7... Nbd7 $1 $11 )8. f3 $14 {[%emt 0:7:16]} Rd8 {[%emt 0:0:17] White is slightly better.} 9. e4 {[%emt 0:0:31]} Be6 {[%emt 0:0:5]} 10. Ne5 {[%emt 0:14:52][%cal Oe5c6]} Nb4 {[%emt 0:0:4]} 11. Be3 {[%emt 0:3:19][%cal Bc1e3,Be3f4,Bf4c7][%mdl 32]} a5 {[%emt 0:0:11]} 12. Bc4 $146 {[%emt 0:10:19]} ({Predecessor:} 12. Rc1 g6 13. f4 Bg7 14. Be2 O-O 15. O-O Nd7 16. Nf3 Nc5 17. d5 b6 18. dxe6 Rxd1 19. exf7+ {½-½ Kaufman,D (2447)-Atalik,S (2438) Pozarevac Rudar GM 08 2025 (6)} )Nd7 {[%emt 0:1:10][%cal Bf6d7,Bd7e5,Be5d3][%mdl 32]} 13. Bxe6 {[%emt 0:6:29][%csl Ge5][%cal Re6f7]} Nxe5 {[%emt 0:0:16] [#]} 14. O-O $1 {[%emt 0:1:56]} fxe6 {[%emt 0:3:15]} 15. Bf4 {[%emt 0:1:27]} Nbd3 {[%emt 0:0:8]} 16. Qxd3 {[%emt 0:0:9]} Nxd3 {[%emt 0:0:4]} 17. Bxc7 {[%emt 0:0:4]} Rxd4 {[%emt 0:0:36]} 18. Rfd1 {[%emt 0:8:46]} Rd7 {[%emt 0:0:56]} 19. Bxa5 {[%emt 0:1:2]} g6 {[%emt 0:5:27]} 20. Ne2 {[%emt 0:4:40]} Bg7 {[%emt 0:1:20]} 21. Bc3 {[%emt 0:2:24]} Bxc3 {[%emt 0:0:17]} 22. Nxc3 {[%emt 0:0:57]} Kf7 {[%emt 0:8:19]} 23. a5 {[%emt 0:5:19]} Rhd8 {[%emt 0:4:25]} 24. a6 {[%emt 0:1:8]} bxa6 {[%emt 0:0:20]} 25. Rxa6 {[%emt 0:0:5]} Rd6 {[%emt 0:0:42]} 26. h4 {[%emt 0:11:46]} Rb8 {[%emt 0:15:38]} 27. Rd2 {[%emt 0:3:6]} h6 {[%emt 0:24:41]} 28. Nd1 $1 {[%emt 0:2:59] The position is equal.} g5 {[%emt 0:7:9]} 29. h5 {[%emt 0:5:23]} Ne5 {[%emt 0:11:19]} 30. Rxd6 {[%emt 0:0:8]} exd6 $11 {[%emt 0:0:3][%mdl 4096] Endgame KRN-KRN} 31. Ra7+ {[%emt 0:1:31]} Kf8 {[%emt 0:0:9]} 32. Kf1 {[%emt 0:2:23]} ({Don't go for} 32. Rh7 $2 Nf7 33. Kf2 Kg8 34. Rxf7 Kxf7 $19 )d5 {[%emt 0:0:9]} 33. exd5 {[%emt 0:1:9]} cxd5 {[%emt 0:0:43]} 34. Ra6 {[%emt 0:0:40]} Ke7 {[%emt 0:20:55]} 35. Ra7+ {[%emt 0:0:6]} Kf8 {[%emt 0:1:28]} 36. Ra6 {[%emt 0:1:0]} Ke7 {[%emt 0:0:5]} 37. Ra7+ {[%emt 0:0:3]} Kf8 {[%emt 0:3:12]} 38. Ra6 {[%emt 0:1:23] Weighted Error Value: White=0.06 (flawless) /Black=0.06 (flawless)   Mistake:       	---       	Black=1      Inaccurate:     	White=3     	---        OK:         	White=13    	Black=5      Best:        	White=1     	---        Strong:       	White=1     	---} 1/2-1/2